[Event "Championnat du monde jeunes U12"]
[Date "2024.11.20"]
[White "Ivarlac, Vladislav"]
[Black "Zutautas, Mantas"]
[WhiteElo "1867"]
[BlackElo "1540"]
[Round "6.50"]
[Result "1-0"]
[TimeControl "5400+30"]

1. Nf3 {[%clk 1:30:59]} 1... d5 {[%clk 1:30:34]} 2. g3 {[%clk 1:31:21]} 2... Nf6
{[%clk 1:30:26]} 3. Bg2 {[%clk 1:31:42]} 3... Bf5 {[%clk 1:30:20]} 4. O-O {[%clk
1:31:46]} 4... e6 {[%clk 1:30:33]} 5. d3 {[%clk 1:31:13]} 5... c6 {[%clk
1:29:31]} 6. b3 {[%clk 1:31:20]} 6... Nbd7 {[%clk 1:29:21]} 7. Nbd2 {[%clk
1:31:27]} 7... Be7 {[%clk 1:29:25]} 8. Bb2 {[%clk 1:31:20]} 8... O-O {[%clk
1:29:40]} 9. c4 {[%clk 1:31:21]} 9... h6 {[%clk 1:29:49]} 10. Rc1 {[%clk
1:31:15]} 10... Qb6 {[%clk 1:28:00]} 11. e4 {[%clk 1:26:33]} 11... dxe4 {[%clk
1:20:50]} 12. dxe4 {[%clk 1:26:42]} 12... Bh7 {[%clk 1:21:01]} 13. e5 {[%clk
1:13:34]} 13... Ne8 {[%clk 1:15:30]} 14. Ne4 {[%clk 1:07:34]} 14... Rd8 {[%clk
1:14:30]} 15. Qe2 {[%clk 1:05:18]} 15... Nc7 {[%clk 1:11:43]} 16. Rfd1 {[%clk
1:02:48]} 16... Na6 {[%clk 1:11:30]} 17. Nd6 {[%clk 0:56:55]} 17... Ndc5 {[%clk
1:09:20]} 18. Bd4 {[%clk 0:54:57]} 18... Bxd6 {[%clk 1:04:16]} 19. exd6 {[%clk
0:54:34]} 19... Rxd6 {[%clk 1:02:13]} 20. Qe5 {[%clk 0:54:49]} 20... Rxd4 {[%clk
1:01:38]} 21. Qxd4 {[%clk 0:55:01]} 21... Nb8 {[%clk 0:59:55]} 22. Qc3 {[%clk
0:54:12]} 22... Ne4 {[%clk 0:59:06]} 23. Qe3 {[%clk 0:54:35]} 23... Nc5 {[%clk
0:59:02]} 24. Nd4 {[%clk 0:53:04]} 24... Nbd7 {[%clk 0:58:35]} 25. Qc3 {[%clk
0:52:36]} 25... Nf6 {[%clk 0:58:10]} 26. b4 {[%clk 0:50:55]} 26... Nce4 {[%clk
0:57:52]} 27. Qa3 {[%clk 0:49:07]} 27... a6 {[%clk 0:55:44]} 28. c5 {[%clk
0:49:20]} 28... Qc7 {[%clk 0:55:31]} 29. f3 {[%clk 0:47:21]} 29... Ng5 {[%clk
0:53:44]} 30. h4 {[%clk 0:46:44]} 30... Nxf3+ {[%clk 0:52:47]} 31. Qxf3 {[%clk
0:46:52]} 31... Be4 {[%clk 0:52:48]} 32. Qe3 {[%clk 0:46:44]} 1-0

[Variant "Standard"]
[Site "Europe Echecs"]

[Event "Championnat du monde jeunes U12"]
[Date "2024.11.20"]
[White "Petrovski, Nikola"]
[Black "Macia Tell, Dario"]
[WhiteElo "1829"]
[BlackElo "1520"]
[Round "6.51"]
[Result "1-0"]
[TimeControl "5400+30"]

1. e4 {[%clk 1:30:15]} 1... c5 {[%clk 1:30:57]} 2. Nf3 {[%clk 1:30:40]} 2... d6
{[%clk 1:31:22]} 3. Bb5+ {[%clk 1:30:45]} 3... Nd7 {[%clk 1:31:46]} 4. c4 {[%clk
1:31:03]} 4... g6 {[%clk 1:32:07]} 5. Nc3 {[%clk 1:31:27]} 5... Bg7 {[%clk
1:32:32]} 6. O-O {[%clk 1:31:38]} 6... Nf6 {[%clk 1:32:38]} 7. d3 {[%clk
1:31:57]} 7... O-O {[%clk 1:32:59]} 8. h3 {[%clk 1:32:13]} 8... e5 {[%clk
1:32:16]} 9. Be3 {[%clk 1:31:33]} 9... a6 {[%clk 1:32:21]} 10. Ba4 {[%clk
1:22:24]} 10... Nb6 {[%clk 1:32:08]} 11. Bc2 {[%clk 1:22:33]} 11... Be6 {[%clk
1:32:10]} 12. Qd2 {[%clk 1:22:11]} 12... Rc8 {[%clk 1:30:41]} 13. Bh6 {[%clk
1:21:28]} 13... Qd7 {[%clk 1:30:05]} 14. Bxg7 {[%clk 1:21:25]} 14... Kxg7 {[%clk
1:30:28]} 15. Rad1 {[%clk 1:09:18]} 15... Rh8 {[%clk 1:30:26]} 16. Ng5 {[%clk
1:08:02]} 16... Rcf8 {[%clk 1:29:00]} 17. f4 {[%clk 1:01:54]} 17... h6 {[%clk
1:24:57]} 18. Nf3 {[%clk 0:43:28]} 18... exf4 {[%clk 1:25:03]} 19. Qxf4 {[%clk
0:41:10]} 19... g5 {[%clk 1:25:26]} 20. Nxg5 {[%clk 0:36:11]} 20... Nh5 {[%clk
1:25:23]} 21. Qh4 {[%clk 0:27:00]} 21... Nf6 {[%clk 1:25:01]} 22. Rxf6 {[%clk
0:13:35]} 22... Kxf6 {[%clk 1:24:25]} 23. Nh7+ {[%clk 0:08:58]} 23... Kg7 {[%clk
1:24:45]} 24. Nxf8 {[%clk 0:08:32]} 24... Rxf8 {[%clk 1:25:07]} 25. Rf1 {[%clk
0:07:38]} 25... f5 {[%clk 1:24:38]} 26. Nd5 {[%clk 0:05:27]} 26... Nxd5 {[%clk
1:24:38]} 27. cxd5 {[%clk 0:05:28]} 27... Bg8 {[%clk 1:25:02]} 28. exf5 {[%clk
0:04:26]} 28... Bxd5 {[%clk 1:25:16]} 29. f6+ {[%clk 0:04:42]} 29... Kh7 {[%clk
1:25:42]} 30. d4+ {[%clk 0:05:07]} 30... Kg8 {[%clk 1:25:50]} 31. Qxh6 {[%clk
0:03:24]} 31... Rf7 {[%clk 1:26:00]} 32. Qg5+ {[%clk 0:03:05]} 32... Kf8 {[%clk
1:25:24]} 33. Qxd5 {[%clk 0:03:29]} 33... Qb5 {[%clk 1:25:36]} 34. Qxd6+ {[%clk
0:03:30]} 34... Kg8 {[%clk 1:25:55]} 35. Qd8+ {[%clk 0:03:35]} 35... Rf8 {[%clk
1:26:09]} 36. f7+ {[%clk 0:03:59]} 36... Kg7 {[%clk 1:26:33]} 37. Qf6# {[%clk
0:04:17]} 1-0

[Variant "Standard"]
[Site "Europe Echecs"]

[Event "Championnat du monde jeunes U12"]
[Date "2024.11.20"]
[White "Kozhedub, Ivan"]
[Black "Huang, Hao-Xuan"]
[WhiteElo "1826"]
[BlackElo "1516"]
[Round "6.52"]
[Result "1-0"]
[TimeControl "5400+30"]

1. e4 {[%clk 1:30:56]} 1... e5 {[%clk 1:30:48]} 2. Nc3 {[%clk 1:31:22]} 2... Nf6
{[%clk 1:30:11]} 3. Bc4 {[%clk 1:31:46]} 3... Nc6 {[%clk 1:29:38]} 4. d3 {[%clk
1:32:10]} 4... Bb4 {[%clk 1:29:28]} 5. Ne2 {[%clk 1:32:14]} 5... O-O {[%clk
1:24:41]} 6. O-O {[%clk 1:31:37]} 6... d6 {[%clk 1:23:53]} 7. Bg5 {[%clk
1:27:41]} 7... h6 {[%clk 1:17:13]} 8. Bxf6 {[%clk 1:26:45]} 8... Qxf6 {[%clk
1:17:07]} 9. Nd5 {[%clk 1:27:06]} 9... Qd8 {[%clk 1:15:48]} 10. f4 {[%clk
1:23:06]} 10... Bc5+ {[%clk 1:15:00]} 11. Kh1 {[%clk 1:22:45]} 11... Bg4 {[%clk
1:09:32]} 12. Qe1 {[%clk 1:17:23]} 12... Qd7 {[%clk 0:56:29]} 13. f5 {[%clk
1:15:56]} 13... Bxe2 {[%clk 0:49:31]} 14. Qxe2 {[%clk 1:16:15]} 14... Nd4 {[%clk
0:48:15]} 15. Qh5 {[%clk 1:14:17]} 15... c6 {[%clk 0:41:52]} 16. Nf6+ {[%clk
1:13:55]} 16... gxf6 {[%clk 0:41:33]} 17. Qg6+ {[%clk 1:14:22]} 17... Kh8 {[%clk
0:41:39]} 18. Qxh6+ {[%clk 1:14:48]} 18... Kg8 {[%clk 0:41:29]} 19. Qg6+ {[%clk
1:13:06]} 19... Kh8 {[%clk 0:41:49]} 20. Qxf6+ {[%clk 1:13:27]} 20... Kg8 {[%clk
0:40:18]} 21. Qg5+ {[%clk 1:13:43]} 21... Kh7 {[%clk 0:31:37]} 22. f6 {[%clk
1:13:12]} 22... Ne6 {[%clk 0:28:38]} 23. Bxe6 {[%clk 1:13:32]} 23... fxe6 {[%clk
0:28:43]} 24. Rf3 {[%clk 1:14:01]} 24... Kh8 {[%clk 0:23:49]} 25. Rh3+ {[%clk
1:14:27]} 25... Qh7 {[%clk 0:24:10]} 26. Qg7# {[%clk 1:14:53]} 1-0

[Variant "Standard"]
[Site "Europe Echecs"]

[Event "Championnat du monde jeunes U12"]
[Date "2024.11.20"]
[White "Lee, Tsuen Jin Aiesec"]
[Black "Mohd Firdaus, Firast Haiqal"]
[WhiteElo "1806"]
[BlackElo "1514"]
[Round "6.53"]
[Result "1-0"]
[TimeControl "5400+30"]

1. e4 {[%clk 1:30:58]} 1... d5 {[%clk 1:30:50]} 2. exd5 {[%clk 1:31:26]} 2...
Qxd5 {[%clk 1:31:08]} 3. Nc3 {[%clk 1:31:55]} 3... Qd6 {[%clk 1:31:29]} 4. d4
{[%clk 1:32:05]} 4... Nf6 {[%clk 1:31:48]} 5. Nf3 {[%clk 1:29:53]} 5... c6
{[%clk 1:31:36]} 6. Bc4 {[%clk 1:29:07]} 6... Bg4 {[%clk 1:30:49]} 7. Be3 {[%clk
1:29:07]} 7... e6 {[%clk 1:30:09]} 8. a3 {[%clk 1:28:34]} 8... Be7 {[%clk
1:29:26]} 9. h3 {[%clk 1:28:51]} 9... Bh5 {[%clk 1:29:18]} 10. g4 {[%clk
1:27:53]} 10... Bg6 {[%clk 1:29:27]} 11. Ne5 {[%clk 1:27:16]} 11... Nbd7 {[%clk
1:27:30]} 12. Nxg6 {[%clk 1:24:17]} 12... hxg6 {[%clk 1:27:34]} 13. Qf3 {[%clk
1:23:52]} 13... Nb6 {[%clk 1:21:54]} 14. Bb3 {[%clk 1:24:16]} 14... O-O-O {[%clk
1:20:10]} 15. O-O-O {[%clk 1:24:35]} 15... Nbd5 {[%clk 1:16:36]} 16. Nxd5 {[%clk
1:23:57]} 16... exd5 {[%clk 1:13:11]} 17. c4 {[%clk 1:13:27]} 17... dxc4 {[%clk
1:02:32]} 18. Bxc4 {[%clk 1:13:21]} 18... Nd5 {[%clk 1:02:46]} 19. Qxf7 {[%clk
1:12:49]} 19... Rdf8 {[%clk 1:02:12]} 20. Qxg7 {[%clk 1:12:10]} 20... Rfg8
{[%clk 1:02:02]} 21. Qe5 {[%clk 1:09:27]} 21... Qxe5 {[%clk 1:02:04]} 22. dxe5
{[%clk 1:09:43]} 22... Nxe3 {[%clk 1:02:02]} 23. fxe3 {[%clk 1:07:12]} 23... Rf8
{[%clk 1:02:09]} 24. Be6+ {[%clk 1:07:19]} 24... Kb8 {[%clk 1:02:30]} 25. Rd7
{[%clk 1:06:21]} 25... Bg5 {[%clk 1:02:38]} 26. Rg7 {[%clk 1:06:09]} 26... Bxe3+
{[%clk 1:02:47]} 27. Kb1 {[%clk 1:06:36]} 27... g5 {[%clk 1:02:56]} 28. Rd1
{[%clk 1:06:42]} 28... Re8 {[%clk 0:58:15]} 29. Bc4 {[%clk 1:05:57]} 29... Rxe5
{[%clk 0:51:21]} 30. Rdd7 {[%clk 1:06:18]} 30... b5 {[%clk 0:51:20]} 31. Rb7+
{[%clk 1:06:35]} 31... Ka8 {[%clk 0:51:42]} 32. Bf1 {[%clk 1:06:05]} 32... Bb6
{[%clk 0:48:31]} 33. Bg2 {[%clk 1:05:11]} 33... Rc8 {[%clk 0:48:43]} 34. Rbf7
{[%clk 1:05:19]} 34... Bd4 {[%clk 0:47:00]} 35. Bxc6+ {[%clk 1:04:51]} 35... Kb8
{[%clk 0:46:17]} 36. Rb7+ {[%clk 1:05:18]} 36... Ka8 {[%clk 0:46:16]} 37. Rxa7+
{[%clk 0:57:22]} 37... Kb8 {[%clk 0:46:15]} 38. Ra8# {[%clk 0:57:49]} 1-0

[Variant "Standard"]
[Site "Europe Echecs"]

[Event "Championnat du monde jeunes U12"]
[Date "2024.11.20"]
[White "Yusupov, Rauf"]
[Black "Kim, Minwoo"]
[WhiteElo "1763"]
[BlackElo "1501"]
[Round "6.55"]
[Result "1-0"]
[TimeControl "5400+30"]

1. e4 {[%clk 1:30:58]} 1... e5 {[%clk 1:29:34]} 2. Nf3 {[%clk 1:31:22]} 2... Nc6
{[%clk 1:29:25]} 3. Bc4 {[%clk 1:31:39]} 3... Bc5 {[%clk 1:29:19]} 4. O-O {[%clk
1:32:03]} 4... d6 {[%clk 1:27:38]} 5. h3 {[%clk 1:28:18]} 5... Nf6 {[%clk
1:21:52]} 6. d3 {[%clk 1:25:22]} 6... Na5 {[%clk 1:15:23]} 7. Bb3 {[%clk
1:25:24]} 7... Nxb3 {[%clk 1:14:55]} 8. axb3 {[%clk 1:25:47]} 8... Be6 {[%clk
1:14:25]} 9. Nc3 {[%clk 1:24:56]} 9... c6 {[%clk 1:08:15]} 10. Na4 {[%clk
1:23:31]} 10... Bb6 {[%clk 1:07:56]} 11. Nxb6 {[%clk 1:22:27]} 11... Qxb6 {[%clk
1:07:38]} 12. Be3 {[%clk 1:22:48]} 12... c5 {[%clk 1:00:43]} 13. Ng5 {[%clk
1:15:45]} 13... O-O {[%clk 0:55:51]} 14. f4 {[%clk 1:02:28]} 14... exf4 {[%clk
0:44:18]} 15. Rxf4 {[%clk 1:02:45]} 15... h6 {[%clk 0:41:25]} 16. Nf3 {[%clk
0:54:36]} 16... Nh7 {[%clk 0:28:29]} 17. Nd2 {[%clk 0:43:08]} 17... Rfe8 {[%clk
0:22:56]} 18. Rf3 {[%clk 0:38:13]} 18... Qc7 {[%clk 0:18:34]} 19. Rg3 {[%clk
0:30:50]} 19... Kf8 {[%clk 0:15:37]} 20. Qf3 {[%clk 0:25:47]} 20... Qe7 {[%clk
0:11:56]} 21. Rf1 {[%clk 0:24:56]} 21... Rad8 {[%clk 0:08:42]} 22. Qh5 {[%clk
0:24:37]} 22... Qc7 {[%clk 0:05:26]} 23. Qg6 {[%clk 0:21:21]} 23... Ke7 {[%clk
0:04:22]} 24. Qxh7 {[%clk 0:20:32]} 24... Kd7 {[%clk 0:02:19]} 25. Qxg7 {[%clk
0:19:09]} 25... Rg8 {[%clk 0:02:27]} 26. Rxf7+ {[%clk 0:18:41]} 26... Bxf7
{[%clk 0:02:52]} 27. Qxf7+ {[%clk 0:19:08]} 27... Kc6 {[%clk 0:02:58]} 28. Qd5+
{[%clk 0:19:27]} 28... Kd7 {[%clk 0:01:41]} 29. Rxg8 {[%clk 0:19:49]} 29... Rxg8
{[%clk 0:01:47]} 30. Qxg8 {[%clk 0:20:14]} 30... Qa5 {[%clk 0:00:50]} 31. Qf7+
{[%clk 0:20:16]} 31... Kc6 {[%clk 0:00:55]} 32. Qd5+ {[%clk 0:20:17]} 32... Kd7
{[%clk 0:01:12]} 33. Bf4 {[%clk 0:20:38]} 33... Qb6 {[%clk 0:01:07]} 34. Nc4
{[%clk 0:20:38]} 34... Qb4 {[%clk 0:01:21]} 35. Qxd6+ {[%clk 0:20:58]} 35... Ke8
{[%clk 0:01:39]} 36. Qe6+ {[%clk 0:21:03]} 36... Kd8 {[%clk 0:01:50]} 37. Ne5
{[%clk 0:19:51]} 37... a6 {[%clk 0:01:53]} 38. Nf7# {[%clk 0:20:12]} 1-0

[Variant "Standard"]
[Site "Europe Echecs"]

[Event "Championnat du monde jeunes U12"]
[Date "2024.11.20"]
[White "Wang, Luis"]
[Black "Son, Juwon"]
[WhiteElo "1751"]
[BlackElo "1448"]
[Round "6.56"]
[Result "1-0"]
[TimeControl "5400+30"]

1. d4 {[%clk 1:30:52]} 1... Nf6 {[%clk 1:30:51]} 2. Bf4 {[%clk 1:31:09]} 2... c5
{[%clk 1:31:14]} 3. e3 {[%clk 1:31:29]} 3... Qb6 {[%clk 1:31:38]} 4. dxc5 {[%clk
1:30:53]} 4... Qxb2 {[%clk 1:31:40]} 5. Nd2 {[%clk 1:31:12]} 5... e5 {[%clk
1:30:46]} 6. Bg3 {[%clk 1:29:01]} 6... Bxc5 {[%clk 1:30:15]} 7. Bc4 {[%clk
1:28:19]} 7... Bb4 {[%clk 1:26:03]} 8. Nf3 {[%clk 1:25:37]} 8... Nc6 {[%clk
1:22:12]} 9. Rb1 {[%clk 1:22:31]} 9... Qc3 {[%clk 1:21:50]} 10. O-O {[%clk
1:22:07]} 10... e4 {[%clk 1:22:06]} 11. Rb3 {[%clk 1:21:59]} 11... exf3 {[%clk
1:19:06]} 12. Rxc3 {[%clk 1:21:48]} 12... fxg2 {[%clk 1:19:32]} 13. Kxg2 {[%clk
1:21:48]} 13... Bxc3 {[%clk 1:19:52]} 14. Nb1 {[%clk 1:21:07]} 14... Be5 {[%clk
1:17:32]} 15. Bb3 {[%clk 1:19:13]} 15... Bxg3 {[%clk 1:17:15]} 16. hxg3 {[%clk
1:19:31]} 16... O-O {[%clk 1:16:57]} 17. Rh1 {[%clk 1:18:16]} 17... Rd8 {[%clk
1:15:21]} 18. Nc3 {[%clk 1:17:02]} 18... Na5 {[%clk 1:09:19]} 19. Nd5 {[%clk
1:17:00]} 19... Nxd5 {[%clk 1:08:16]} 20. Bxd5 {[%clk 1:17:10]} 20... g6 {[%clk
1:03:53]} 21. Bxf7+ {[%clk 1:16:42]} 21... Kg7 {[%clk 1:00:56]} 22. Bxg6 {[%clk
1:14:21]} 22... hxg6 {[%clk 1:00:03]} 23. Qd4+ {[%clk 1:14:41]} 23... Kf7 {[%clk
1:00:20]} 24. Rh7+ {[%clk 1:15:04]} 24... Ke6 {[%clk 1:00:34]} 25. Qe4+ {[%clk
1:14:56]} 25... Kd6 {[%clk 1:00:50]} 26. Qb4+ {[%clk 1:14:37]} 26... Kc7 {[%clk
1:00:08]} 27. Qxa5+ {[%clk 1:14:55]} 27... b6 {[%clk 1:00:28]} 28. Qe5+ {[%clk
1:15:05]} 28... Kb7 {[%clk 1:00:19]} 29. Qg5 {[%clk 1:17:13]} 29... Ka6 {[%clk
0:59:28]} 30. f3 {[%clk 1:17:12]} 30... Bb7 {[%clk 0:57:59]} 31. Qxg6 {[%clk
1:17:16]} 31... Re8 {[%clk 0:57:38]} 32. Qd3+ {[%clk 1:17:31]} 32... b5 {[%clk
0:56:54]} 33. Qxd7 {[%clk 1:16:33]} 33... Rab8 {[%clk 0:56:58]} 34. Rh6+ {[%clk
1:16:44]} 34... Ka5 {[%clk 0:56:37]} 35. Qc7+ {[%clk 1:16:59]} 35... Ka4 {[%clk
0:56:06]} 36. Rh4+ {[%clk 1:17:18]} 36... b4 {[%clk 0:56:05]} 37. Qd7+ {[%clk
1:17:21]} 37... Ka3 {[%clk 0:56:09]} 38. Qd3+ {[%clk 1:17:32]} 38... Kxa2 {[%clk
0:56:10]} 39. Qb3+ {[%clk 1:17:53]} 39... Ka1 {[%clk 0:56:15]} 40. Rh1# {[%clk
1:18:17]} 1-0

[Variant "Standard"]
[Site "Europe Echecs"]

[Event "Championnat du monde jeunes U12"]
[Date "2024.11.20"]
[White "Isakov, Amin"]
[Black "Maari Kelly Sosi"]
[WhiteElo "1698"]
[BlackElo "1587"]
[Round "6.60"]
[Result "1-0"]
[TimeControl "5400+30"]

1. d4 {[%clk 1:30:40]} 1... d5 {[%clk 1:30:52]} 2. c4 {[%clk 1:30:57]} 2... e6
{[%clk 1:31:12]} 3. Nf3 Nf6 {[%clk 1:31:34]} 4. Nc3 {[%clk 1:31:22]} 4... Bb4
{[%clk 1:31:57]} 5. Qc2 {[%clk 1:30:44]} 5... Nc6 {[%clk 1:31:53]} 6. cxd5
{[%clk 1:30:49]} 6... exd5 {[%clk 1:31:51]} 7. Bg5 {[%clk 1:30:48]} 7... h6
{[%clk 1:31:39]} 8. Bxf6 {[%clk 1:30:40]} 8... Qxf6 {[%clk 1:31:36]} 9. e3
{[%clk 1:30:59]} 9... Bg4 {[%clk 1:29:41]} 10. Be2 {[%clk 1:31:00]} 10... O-O
{[%clk 1:28:58]} 11. O-O {[%clk 1:31:17]} 11... Bxc3 {[%clk 1:29:03]} 12. Qxc3
{[%clk 1:31:31]} 12... Qd8 {[%clk 1:28:11]} 13. h3 {[%clk 1:29:38]} 13... Bh5
{[%clk 1:27:57]} 14. b4 {[%clk 1:29:30]} 14... a6 {[%clk 1:28:02]} 15. a4 {[%clk
1:29:35]} 15... Rb8 {[%clk 1:27:08]} 16. Rfc1 {[%clk 1:23:53]} 16... Re8 {[%clk
1:26:27]} 17. b5 {[%clk 1:23:02]} 17... axb5 {[%clk 1:25:57]} 18. axb5 {[%clk
1:23:23]} 18... Ne7 {[%clk 1:25:52]} 19. Qxc7 {[%clk 1:23:36]} 19... Qxc7 {[%clk
1:26:11]} 20. Rxc7 {[%clk 1:23:53]} 20... b6 {[%clk 1:24:45]} 21. Raa7 {[%clk
1:23:02]} 21... Nc8 {[%clk 1:24:13]} 22. Ra6 {[%clk 1:22:48]} 22... Nd6 {[%clk
1:22:02]} 23. Rc6 {[%clk 1:22:26]} 23... Nxb5 {[%clk 1:21:17]} 24. Bxb5 {[%clk
1:22:35]} 24... Bxf3 {[%clk 1:21:06]} 25. gxf3 {[%clk 1:22:54]} 25... Re7 {[%clk
1:20:52]} 26. Rcxb6 {[%clk 1:23:01]} 26... Rxb6 {[%clk 1:20:52]} 27. Rxb6 {[%clk
1:23:19]} 27... Kh7 {[%clk 1:21:19]} 28. Bd3+ {[%clk 1:23:23]} 28... g6 {[%clk
1:21:39]} 29. Rd6 Kg7 {[%clk 1:21:49]} 30. Rxd5 {[%clk 1:24:04]} 30... Kf6
{[%clk 1:22:09]} 31. Rd6+ {[%clk 1:24:22]} 31... Kg7 {[%clk 1:22:17]} 32. d5
{[%clk 1:24:44]} 32... h5 {[%clk 1:22:38]} 33. Rc6 {[%clk 1:25:04]} 33... Kh6
{[%clk 1:22:48]} 34. d6 {[%clk 1:25:26]} 34... Rd7 {[%clk 1:23:13]} 35. Bb5
{[%clk 1:25:42]} 35... Kg5 {[%clk 1:23:29]} 36. Rc5+ {[%clk 1:25:56]} 1-0

[Variant "Standard"]
[Site "Europe Echecs"]

[Event "Championnat du monde jeunes U12"]
[Date "2024.11.20"]
[White "Sobirov, Feruzbek"]
[Black "Zhan, Jayden Zihan"]
[WhiteElo "1487"]
[BlackElo "1670"]
[Round "6.61"]
[Result "1/2-1/2"]
[TimeControl "5400+30"]

1. d4 {[%clk 1:30:53]} 1... Nf6 {[%clk 1:30:55]} 2. Nc3 {[%clk 1:31:06]} 2... d5
{[%clk 1:31:19]} 3. Bf4 {[%clk 1:30:43]} 3... Bf5 {[%clk 1:31:39]} 4. f3 {[%clk
1:31:07]} 4... e6 {[%clk 1:31:58]} 5. g4 {[%clk 1:31:32]} 5... Bg6 {[%clk
1:32:23]} 6. h4 {[%clk 1:31:57]} 6... h5 {[%clk 1:32:44]} 7. g5 {[%clk 1:30:41]}
7... Ng8 {[%clk 1:33:03]} 8. e3 {[%clk 1:30:05]} 8... Bd6 {[%clk 1:33:08]} 9.
Nh3 {[%clk 1:28:56]} 9... Ne7 {[%clk 1:32:43]} 10. Bd3 {[%clk 1:28:51]} 10...
Bxd3 {[%clk 1:32:37]} 11. Qxd3 {[%clk 1:29:13]} 11... Nbc6 {[%clk 1:31:50]} 12.
Bxd6 {[%clk 1:29:02]} 12... Qxd6 {[%clk 1:31:54]} 13. Nf4 {[%clk 1:29:08]} 13...
Nf5 {[%clk 1:31:06]} 14. O-O-O {[%clk 1:28:08]} 14... g6 {[%clk 1:26:54]} 15.
Nb5 {[%clk 1:26:38]} 15... Qd7 {[%clk 1:22:57]} 16. e4 {[%clk 1:26:35]} 16...
dxe4 {[%clk 1:19:08]} 17. fxe4 {[%clk 1:26:57]} 17... Nd6 {[%clk 1:13:57]} 18.
Nxd6+ {[%clk 1:22:49]} 18... Qxd6 {[%clk 1:13:37]} 19. e5 {[%clk 1:23:09]} 19...
Qb4 {[%clk 1:12:17]} 20. a3 {[%clk 1:21:35]} 20... Qa4 {[%clk 1:08:32]} 21. Nxe6
{[%clk 1:17:58]} 21... fxe6 {[%clk 1:01:35]} 22. Qxg6+ {[%clk 1:18:19]} 22...
Kd7 {[%clk 0:58:33]} 23. Qg7+ {[%clk 1:18:23]} 23... Ne7 {[%clk 0:57:20]} 24. d5
{[%clk 1:18:43]} 24... Qf4+ {[%clk 0:50:37]} 25. Kb1 {[%clk 1:19:08]} 25... Rag8
{[%clk 0:49:30]} 26. dxe6+ {[%clk 1:19:30]} 26... Kxe6 {[%clk 0:49:19]} 27. Qf6+
{[%clk 1:19:46]} 27... Qxf6 {[%clk 0:49:41]} 28. exf6 {[%clk 1:20:10]} 28... Nf5
{[%clk 0:47:51]} 29. Rhe1+ {[%clk 1:20:33]} 29... Kf7 {[%clk 0:48:11]} 30. Rd7+
{[%clk 1:20:47]} 30... Kg6 {[%clk 0:48:16]} 31. Re6 {[%clk 1:20:55]} 31... Rf8
{[%clk 0:43:14]} 32. f7+ {[%clk 1:16:03]} 32... Kg7 {[%clk 0:41:06]} 33. Rf6
{[%clk 1:16:23]} 33... Nxh4 {[%clk 0:39:25]} 34. Re7 {[%clk 1:14:50]} 34... Ng6
{[%clk 0:37:47]} 35. Ree6 {[%clk 1:14:51]} 1/2-1/2

[Variant "Standard"]
[Site "Europe Echecs"]